Cogmind - Beta 13 @@@ ROGUE MODE // 2024.07.09 @ 20:45:21 Player: Venar246 Result: Destroyed by D-53 Grenadier with Mini Grenade Launcher Performance ------------- Evolutions (0) 0 Regions Visited (2) 400 Robots Destroyed (20) 100 Value Destroyed (357) 357 Prototype IDs (0) 0 Alien Tech Used (0) 0 Bonus (0) 0 TOTAL SCORE: 857 Bonus ------- None Cogmind --------- Core Integrity 0/250 Matter 253/300 Energy 55/100 System Corruption 0% Temperature Cool (6) Movement Core (50) Location -10/Mines Parts ------- > --- POWER (1) -------- (None) > --- PROPULSION (2) --- (None) > --- UTILITY (2) ------ Signal Interpreter Terrain Scan Processor > --- WEAPON (2) ------- (None) > --- INVENTORY (5) ---- Aluminum Leg Medium Storage Unit Large Storage Unit Peak State ------------ > --- POWER ------------ Light Ion Engine > --- PROPULSION ------- Aluminum Leg Aluminum Leg > --- UTILITY ---------- Medium Storage Unit Terrain Scan Processor > --- WEAPON ----------- Small Laser Assault Rifle > --- INVENTORY -------- Aluminum Leg Large Storage Unit Medium Laser Small Laser [Rating: 8] Favorites ----------- Power Light Ion Engine Engine Light Ion Engine Propulsion Aluminum Leg Leg Aluminum Leg Utility Terrain Scan Processor Storage Medium Storage Unit Processor Terrain Scan Processor Weapon Assault Rifle Energy Gun Small Laser Ballistic Gun Assault Rifle Special Weapon Mining Laser Build | -11 -10 -10 ------- Run | Yrd Mat Min Slots Evolved . | . . . Power . | . . . Propulsion . | . . . Utility . | . . . Weapon . | . . . Parts Attached 16 | 6 8 2 Power 3 | 1 2 . Engine 3 | 1 2 . Core . | . . . Reactor . | . . . Propulsion 3 | 2 1 . Treads . | . . . Leg 3 | 2 1 . Wheel . | . . . Hover . | . . . Flight . | . . . Utility 4 | 1 3 . Device . | . . . Storage 2 | 1 1 . Processor 2 | . 2 . Hackware . | . . . Protection . | . . . Artifact . | . . . Weapon 6 | 2 2 2 Energy Gun 3 | 1 1 1 Energy Cannon . | . . . Ballistic Gun 2 | 1 1 . Ballistic Cannon . | . . . Launcher . | . . . Special Weapon 1 | . . 1 Impact Weapon . | . . . Slashing Weapon . | . . . Piercing Weapon . | . . . Special Melee Weapon . | . . . Unidentified Prototypes . | . . . Parts Lost 10 | . 3 7 Power 3 | . 2 1 Propulsion 3 | . 1 2 Utility . | . . . Weapon 4 | . . 4 Highest Loss Streak 7 | . 2 7 To Critical Strikes . | . . . Average Slot Usage (%) 93 | . 93 94 Engine 11 | . 11 12 Leg 27 | . 27 26 Storage 8 | . 9 . Processor 16 | . 15 28 Energy Gun 5 | . 5 1 Ballistic Gun 22 | . 22 24 Naked Turns . | . . . Heaviest Build 16 | 11 16 6 Greatest Support 20 | 20 20 20 Greatest Overweight (x) 1 | 1 . . Average Overweight (x) . | . . . Largest Inventory Capacity 10 | 8 10 5 Average Capacity 7 | 7 8 5 Most Carried 9 | 1 9 5 Average Carried 4 | . 4 4 Final Capacity 8 | 8 5 5 Final Carried 5 | 1 5 3 Class Distribution -------------------- 87% | Mutant 12% | Scavenger-Mutant Dominant Class ---------------- Mutant | -10/Materials Scavenger-Mutant | -10/Mines Resources | -11 -10 -10 ----------- Run | Yrd Mat Min Matter Collected 437 | 207 230 . Remotely . | . . . Salvage Created 436 | . 382 54 Parts 38 | . 32 6 Haulers Intercepted . | . . . Recyclers Shooed . | . . . Parts Field Recycled . | . . . Retrieved Matter . | . . . Parts Self-Destructed . | . . . Prevented . | . . . Kills | -11 -10 -10 ------- Run | Yrd Mat Min Combat Hostiles Destroyed 13 | . 10 3 Guns 12 | . 9 3 AOE 1 | . 1 . Classes Destroyed 5 | . 5 . Builder 4 | . 4 . Recycler 1 | . 1 . Watcher 2 | . 2 . Swarmer 9 | . 6 3 Grunt 4 | . 4 . Best Kill Streak 7 | . 7 3 Combat Bots Only 3 | . 3 3 Max Kills in Single Turn 4 | . 4 1 Gunslinging . | . . . Exploded 1 | . 1 . Melee . | . . . Uniques/NPCs Destroyed . | . . . Combat | -11 -10 -10 -------- Run | Yrd Mat Min Hostile Shots Fired 83 | . 56 27 Missed 18 | . 12 6 Damage Taken 991 | . 491 500 Core 259 | . 106 153 Absorbed by Shields . | . . . Core Remaining (%) 100 | 100 . . Volleys Fired 55 | . 45 10 Largest 2 | . 2 2 Hottest 100 | . 60 100 Shots Fired 96 | . 78 18 Gun 95 | . 78 17 Cannon . | . . . Launcher . | . . . Special 1 | . . 1 Kinetic 78 | . 62 16 Thermal 18 | . 16 2 Explosive . | . . . Electromagnetic . | . . . Robot Hit Streak 4 | . 4 4 Robot Miss Streak 6 | . 6 2 Penetration Max . | . . . Secondary Targets 5 | . 3 2 Max Gunslinging Chain 1 | . 1 1 Shots Hit Robots 47 | . 37 10 Core Hits 26 | . 22 4 Critical Kills . | . . . Critical Parts Destroyed . | . . . Critical Strikes . | . . . Melee Attacks . | . . . Impact . | . . . Slashing . | . . . Piercing . | . . . Sneak Attacks . | . . . Combat Hostiles . | . . . Follow-up Attacks . | . . . Damage Inflicted 966 | 1 861 104 Guns 534 | . 430 104 Cannons . | . . . Explosions 429 | . 429 . Melee . | . . . Ramming 3 | 1 2 . Kinetic 411 | . 319 92 Thermal 123 | . 111 12 Explosive 429 | . 429 . Electromagnetic . | . . . Impact . | . . . Slashing . | . . . Piercing . | . . . Highest Corruption . | . . . Average Corruption . | . . . Corruption Purged . | . . . Corruption Blocked . | . . . Overload Shots . | . . . Overflow Damage 112 | . 112 . Projectiles . | . . . Explosions 112 | . 112 . Melee . | . . . Knockbacks 1 | 1 . . Impact 1 | 1 . . Kinetic . | . . . Secondary . | . . . Self-Inflicted Damage . | . . . Shots . | . . . Rammed . | . . . Targets Rammed 3 | 1 2 . Kicked 3 | 1 2 . Crushed . | . . . Highest Temperature 76 | . 76 6 Average Temperature 41 | . 42 6 Received Heat Transfer 162 | . 150 12 Siege Activations . | . . . Robots Corrupted . | . . . Combat Hostiles . | . . . Parts Fried . | . . . Impact Corruptions . | . . . Robots Melted . | . . . Combat Hostiles . | . . . Parts Melted . | . . . Heat Transferred 287 | . 250 37 Parts Sabotaged . | . . . Parts Stolen . | . . . Parts Stripped . | . . . Power Chain Reactions . | . . . Alert | -11 -10 -10 ------- Run | Yrd Mat Min Peak Influence 279 | . 279 121 Initial 51 | . . 51 Average 135 | . 147 106 Maximum Alert Level 1 | . 1 . Low Security (%) 75 | 100 71 100 Level 1 24 | . 28 . Level 2 . | . . . Level 3 . | . . . Level 4 . | . . . Level 5 . | . . . High Security . | . . . Max Security . | . . . Squads Dispatched 1 | . 1 . Investigation . | . . . Extermination . | . . . Reinforcement 1 | . 1 . Assault . | . . . Garrison . | . . . Intercept . | . . . Searches Triggered . | . . . Construction Impeded . | . . . Haulers Reinforced . | . . . Active Scanning Responses . | . . . Cargo Convoy Interrupts . | . . . Stealth | -11 -10 -10 --------- Run | Yrd Mat Min Distress Signals 2 | . 1 1 Communications Jammed . | . . . Distress Signals . | . . . Times Spotted 26 | . 20 6 Peak Tracking Total 3 | . 3 3 Tactical Retreats . | . . . Traps | -11 -10 -10 ------- Run | Yrd Mat Min Traps Triggered 1 | . 1 . Indirectly . | . . . Trap Hack Attempts . | . . . Triggered . | . . . Disarmed . | . . . Reprogrammed . | . . . Reused . | . . . Traps Extracted . | . . . Installed . | . . . Triggered . | . . . Machines | -11 -10 -10 ---------- Run | Yrd Mat Min Machines Disabled 6 | . 6 . Max in Single Turn 5 | . 5 . Machines Repaired . | . . . Machines Dismantled . | . . . Machines Sabotaged . | . . . Overloaded Fab Kills . | . . . Hacking | -11 -10 -10 --------- Run | Yrd Mat Min Machines Accessed 1 | . 1 . Terminals 1 | . 1 . Fabricators . | . . . Repair Stations . | . . . Recycling Units . | . . . Scanalyzers . | . . . Garrison Access . | . . . Total Hacks 2 | . 2 . Successful 1 | . 1 . Failed 1 | . 1 . Catastrophic . | . . . Database Lockouts . | . . . Manual . | . . . Terminals 2 | . 2 . Fabricators . | . . . Repair Stations . | . . . Recycling Units . | . . . Scanalyzers . | . . . Garrison Access . | . . . Terminal Hacks 1 | . 1 . Zone Layout 1 | . 1 . Fabricator Hacks . | . . . Repair Station Hacks . | . . . Recycling Unit Hacks . | . . . Scanalyzer . | . . . Garrison Access Hacks . | . . . Unauthorized Hacks . | . . . Terminals . | . . . Fabricators . | . . . Repair Stations . | . . . Recycling Units . | . . . Scanalyzers . | . . . Garrison Access . | . . . Data Cores Recovered . | . . . Used . | . . . Hacking Detections 1 | . 1 . Full Trace Events . | . . . Feedback Events . | . . . Feedback Blocked . | . . . Robot Schematics Acquired . | . . . Robots Built . | . . . Authchips . | . . . Time . | . . . Total Robot Build Rating . | . . . Part Schematics Acquired . | . . . Parts Built . | . . . Authchips . | . . . Time . | . . . Total Part Build Rating . | . . . Parts Repaired . | . . . Time . | . . . Parts Recycled . | . . . Recycled Matter . | . . . Retrieved Matter . | . . . Retrieved Components . | . . . Parts Scanalyzed . | . . . Part Schematics Acquired . | . . . Parts Damaged . | . . . Bothacking | -11 -10 -10 ------------ Run | Yrd Mat Min Used RIF Installer . | . . . Robots Hacked . | . . . Non-combat . | . . . Combat . | . . . Robot Hacks Applied . | . . . Relay Couplers Released . | . . . Fabnet Peak Effective % . | . . . Robots Rewired . | . . . Allies Hacked . | . . . Hacks Repelled . | . . . Allies | -11 -10 -10 -------- Run | Yrd Mat Min Total Allies . | . . . Largest Group . | . . . Highest-Rated Group . | . . . Highest-Rated Ally . | . . . Total Orders . | . . . Ally Attacks . | . . . Total Damage . | . . . Kills . | . . . Allies Corrupted . | . . . Allies Melted . | . . . Intel | -11 -10 -10 ------- Run | Yrd Mat Min Robot Analysis Total . | . . . Derelict Logs Recovered 1 | . . 1 Drone Launches . | . . . Drone Recoveries . | . . . Exploration | -11 -10 -10 ------------- Run | Yrd Mat Min Turns Passed 1278 | 83 1113 82 Spaces Moved 918 | 66 806 46 Core 18 | 13 . 5 Treads . | . . . Legs 900 | 53 806 41 Wheels . | . . . Hover . | . . . Flight . | . . . Fastest Speed 50 | 50 120 50 Average Speed 118 | 110 120 112 Slowest Speed 190 | 190 120 120 Overloaded Moves . | . . . Propulsion Burnouts . | . . . Robots Hopped . | . . . Cave-ins Triggered . | . . . Exploration Rate (%) 35 | 4 82 20 Regions Visited 2 Branch Regions 1 Pre-discovered Areas . | . . . Known Exits Taken 1 | . 1 . Unknown Exits Taken 1 | 1 . . Scrap Searched . | . . . Spaces Dug . | . . . Terrain Destroyed 28 | . 28 . Melee . | . . . Projectile . | . . . AOE 28 | . 28 . Terrain Rammed . | . . . Walls Destroyed . | . . . Machines Disabled . | . . . Actions | -11 -10 -10 --------- Run | Yrd Mat Min Total 1009 | 73 878 58 Wait . | . . . Move 916 | 65 805 46 Hop . | . . . Pick Up 12 | 1 11 . Fast Attach 9 | 6 3 . Attach 5 | . 3 2 Detach 1 | . 1 . Swap 2 | . 2 . Drop 6 | . 6 . Fire 55 | . 45 10 Melee . | . . . Ram . | . . . Kick 3 | 1 2 . Crush . | . . . Escape Stasis . | . . . Rewire . | . . . Trap . | . . . Miscellaneous . | . . . Route ------- -11/Scrapyard -10/Materials (discovered 4 exits: *Mat x3 / *Min) -10/Mines (discovered 1 exit: *Mat) History --------- Turn | Location | Event 26 | -11/Scrapyard | Discovered new exit (range 15) 84 | -11/Scrapyard | Entered Materials 302 | -10/Materials | Build established: Mutant 322 | -10/Materials | Discovered new exit (range 16) 478 | -10/Materials | Discovered new exit (range 13) 624 | -10/Materials | Discovered new exit (range 6) 742 | -10/Materials | Discovered new exit (range 9) 894 | -10/Materials | Identified exit to Materials 966 | -10/Materials | Identified exit to Mines 1197 | -10/Materials | Entered Mines 1198 | -10/Mines | Assembled infested the area 1201 | -10/Mines | Core integrity fell below 50% 1203 | -10/Mines | Assisted by a Guerilla fighting off Assembled 1252 | -10/Mines | Learned 2 Materials zone layouts 1274 | -10/Mines | Discovered exit to Materials (range 16) 1275 | -10/Mines | Core integrity fell below 20% 1279 | -10/Mines | Destroyed by D-53 Grenadier with Mini Grenade Launcher Last Messages --------------- HV Slug penetrates Wall. S-10 Pest destroyed. Switching to secondary target: S-10 Pest. S-10 Pest destroyed. Acquired derelict log, extracted data. Data stored: Materials zone layouts (x2). Aluminum Leg destroyed. The unstable cave ceiling collapses. Assault Rifle destroyed. Lgt. Ion Engine destroyed. Lgt. Assault Rifle destroyed. Aluminum Leg destroyed. The unstable cave ceiling collapses. Med. Laser destroyed. The unstable cave ceiling collapses. EXIT=FOUND: MATERIALS The unstable cave ceiling collapses. K-01 Serf collects debris. Mining Laser destroyed. The unstable cave ceiling collapses. Map ----- +----------------------------------------------------+ | ???????????????=[= ?????????????????????????????? | | ???????????????=% ??????????????????????????????? | | ???????????????%= ??????????????????????????????? | | ???????????????[ ???????????????????????????????? | | ??????????????# ???????????????????????????????? | | ?????????????# #???????????????????????????????? | | ?????????????" #####???????????????????????????? | | ?????????????" ????????????????????????????? | | ????????###### ?????????????????????????????? | | ???????## ## #??????????????????????????????? | | ??????## #??????????????????????????????? | | ?????## #??????????????????????????????? | | ????## #??????????????????????????????? | | ????# #??????????????????????????????? | | ????# ##??????????????????????????????? | | ????## ## ###???????????????????????????????? | | ?????### ## ###?????????????????????????????????? | | ???????# ## #???????????????????????????????????? | | ???????# #???????????????????????????????????? | | ???????# ####??? #????????????????????????????? | | ??????## #### #??####???????????????????????? | | ?????## #??## <###?????????????????????? | | ?????# ##### #??## ##????????????????????? | | ?????# ##??????### ##???????????????????? | | ?????# #?????## ## # #??????????? | | ?????## ##???## *=@d k % #????????? | | ?????## ##?## = #! < %!????????? | | ?????# ### % !g ???????????? | | ?????# ### %* g % ??????????? | | ????# """ ## # % # ??????????? | | ????# """ # ## #??????????? | | ????## """ # # # # ## #### #?????????????? | | ?????## ## ##? ###????#?????????????? | | ??????## ### ##?? #????????????????????? | | ???????# ##?# ######??? #????????????????????? | | ??????# #??# #????????? ????????????????????? | | ????? ?? #?????????#????????????????????? | | ????## ##?####??????????????????????????????? | | ?????## ##????????????????????????????????????? | | ??????## ##?????????????????????????????????????? | | ???????###???????????????????????????????????????? | | ?????????????????????????????????????????????????? | | ?????????????????????????????????????????????????? | | ?????????????????????????????????????????????????? | | ?????????????????????????????????????????????????? | | ?????????????????????????????????????????????????? | | ?????????????????????????????????????????????????? | | ?????????????????????????????????????????????????? | | ?????????????????????????????????????????????????? | | ?????????????????????????????????????????????????? | +----------------------------------------------------+ Best States ------------- Heat Dissipation 25 Energy Generation 10 Energy Capacity 125 Matter Stores 300 Matter Capacity 300 Sight Range 16 Terrain Scan Density 85 Evasion (%) 55 Item Schematics ----------------- None Robot Schematics ------------------ None Fabricated ------------ Nothing Alien Tech Used ----------------- None Achievements -------------- None Challenges ------------ None Game ------ Seed SwarmSuperchargedSlayer Manual? 0 Play Time 00:07:12 Cumulative 5.7 hours Start 2024.07.09 @ 20:38:55 End 2024.07.09 @ 20:45:21 Sessions 1 Manual Loads 0 Difficulty Rogue Special Mode None Game No. 14 Rogue 14 Adventurer 0 Explorer 0 Win Type - Total 0 Types 0/0/0/0/0/0/0/0/0 Lore% 4 Gallery% 14 Achievement% 10 Wizard Run 0 Options --------- Layout 1 ASCII 0 Keyboard 0 Movement Arrows Keybinds 0 Fullscreen 1 Font 32/SmallcapsGlow Map View 50x35 Zoom Use 0% Tactical HUD 0 Map Filters NONE Filters NONE Steam 1 RUN: 02161257-3623-457c-b7fc-6b5d22702926